fUSD/lending_fUSD_20250305
["ID","MTS","AMOUNT","RATE_DAILY","PERIOD"]
[355482917,1741199451484,-932.35,0.00011265,2]
[355482919,1741199451494,-1027.32,0.00011265,2]
[355482921,1741199451504,-500.0,0.00011265,2]
[355482923,1741199451513,-1405.47,0.00011265,2]
[355482925,1741199451523,-971.68,0.00011265,2]
[355482927,1741199451533,-960.71,0.00011265,2]
[355482929,1741199451542,-942.88,0.00011265,2]
[355482931,1741199451551,-1276.07,0.00011265,2]
[355482933,1741199451561,-840.09,0.00011265,2]
[355482935,1741199451571,-7397.86,0.00011265,2]
[355482937,1741199451580,-500.0,0.00011265,2]
[355482939,1741199451590,-1587.71,0.00011265,2]
[355482941,1741199451599,-525.12,0.00011265,2]
[355482943,1741199451609,-8951.66,0.00011265,2]
[355482945,1741199451619,-910.62,0.00011265,2]
[355482947,1741199451631,-1270.77,0.00011265,2]
[355482949,1741199451641,-871.78,0.00011265,2]
[355482951,1741199451650,-500.0,0.00011265,2]
[355482953,1741199451660,-1798.94,0.00011265,2]
[355482955,1741199451671,-856.73,0.00011265,2]
[355482957,1741199451681,-1071.47,0.00011265,2]
[355482959,1741199451690,-638.31,0.00011265,2]
[355482989,1741199451927,-1065.5,0.00011265,2]
[355482993,1741199451992,-1667.92,0.00011265,2]
[355482995,1741199452006,-1303.72,0.00011265,2]
[355482997,1741199452015,-151.0,0.00011266,2]
[355482999,1741199452026,-500.0,0.00011266,2]
[355483001,1741199452036,-500.0,0.00011266,2]
[355483002,1741199452045,-500.0,0.00011266,2]
[355483003,1741199452055,-500.0,0.00011266,2]
[355483004,1741199452064,-500.0,0.00011266,2]
[355483005,1741199452073,-500.0,0.00011266,2]
[355483006,1741199452084,-500.0,0.00011266,2]
[355483007,1741199452102,-500.0,0.00011266,2]
[355483008,1741199452119,-513.58,0.00011266,2]
[355483009,1741199452130,-606.49,0.00011266,2]
[355483010,1741199452140,-500.0,0.00011266,2]
[355483011,1741199452149,-500.0,0.00011266,2]
[355483012,1741199452158,-500.0,0.00011266,2]
[355483013,1741199452167,-500.0,0.00011266,2]
[355483015,1741199452176,-500.0,0.00011266,2]
[355483016,1741199452186,-507.71,0.00011266,2]
[355483018,1741199452195,-500.0,0.00011266,2]
[355483020,1741199452205,-500.0,0.00011266,2]
[355483022,1741199452214,-500.0,0.00011266,2]
[355483024,1741199452223,-620.71,0.00011266,2]
[355483026,1741199452235,-500.0,0.00011266,2]
[355483028,1741199452244,-500.0,0.00011266,2]
[355483030,1741199452254,-586.34,0.00011266,2]
[355483032,1741199452263,-500.0,0.00011266,2]
[355483034,1741199452272,-681.75,0.00011266,2]
[355483036,1741199452282,-500.0,0.00011266,2]
[355483038,1741199452290,-500.0,0.00011266,2]
[355483040,1741199452299,-838.53,0.00011266,2]
[355483042,1741199452308,-500.0,0.00011266,2]
[355483044,1741199452318,-500.0,0.00011266,2]
[355483046,1741199452328,-500.0,0.00011266,2]
[355483048,1741199452338,-500.0,0.00011266,2]
[355483050,1741199452347,-500.0,0.00011266,2]
[355483052,1741199452356,-500.0,0.00011266,2]
[355483054,1741199452366,-500.0,0.00011266,2]
[355483056,1741199452375,-500.0,0.00011266,2]
[355483058,1741199452386,-500.0,0.00011266,2]
[355483060,1741199452396,-500.0,0.00011266,2]
[355483062,1741199452405,-901.91,0.00011266,2]
[355483064,1741199452415,-500.0,0.00011266,2]
[355483066,1741199452424,-500.0,0.00011266,2]
[355483068,1741199452434,-615.51841272,0.00011266,2]
[355483070,1741199452443,-500.0,0.00011266,2]
[355483072,1741199452453,-500.0,0.00011266,2]
[355483074,1741199452463,-500.0,0.00011266,2]
[355483076,1741199452472,-500.0,0.00011266,2]
[355483078,1741199452481,-618.05,0.00011266,2]
[355483080,1741199452491,-503.49408732,0.00011266,2]
[355483082,1741199452500,-593.61,0.00011266,2]
[355483084,1741199452510,-412.79427406,0.00011266,2]
[355483086,1741199452520,-500.0,0.00011266,2]
[355483088,1741199452529,-500.0,0.00011266,2]
[355483090,1741199452539,-546.87,0.00011266,2]
[355483092,1741199452548,-500.0,0.00011266,2]
[355483094,1741199452558,-500.0,0.00011266,2]
[355483096,1741199452568,-500.0,0.00011266,2]
[355483098,1741199452577,-500.0,0.00011266,2]
[355483100,1741199452587,-500.0,0.00011266,2]
[355483102,1741199452596,-500.0,0.00011266,2]
[355483104,1741199452605,-670.52,0.00011266,2]
[355483106,1741199452614,-500.0,0.00011266,2]
[355483108,1741199452624,-500.0,0.00011266,2]
[355483110,1741199452634,-500.0,0.00011266,2]
[355483112,1741199452644,-1019.92,0.00011266,2]
[355483114,1741199452653,-571.8,0.00011266,2]
[355483116,1741199452663,-1354.49,0.00011266,2]
[355483118,1741199452672,-500.0,0.00011266,2]
[355483120,1741199452681,-714.34,0.00011266,2]
[355483122,1741199452690,-500.0,0.00011266,2]
[355483124,1741199452700,-500.0,0.00011266,2]
[355483126,1741199452709,-803.19,0.00011266,2]
[355483128,1741199452718,-500.0,0.00011266,2]
[355483130,1741199452727,-1176.74,0.00011266,2]
[355483132,1741199452737,-515.98,0.00011266,2]
[355483134,1741199452746,-563.48,0.00011266,2]
[355483136,1741199452755,-500.0,0.00011266,2]
[355483138,1741199452764,-1770.89,0.00011266,2]
[355483140,1741199452774,-500.0,0.00011266,2]
[355483142,1741199452785,-1224.18,0.00011266,2]
[355483144,1741199452794,-664.71,0.00011266,2]
[355483146,1741199452803,-500.0,0.00011266,2]
[355483148,1741199452813,-1172.41,0.00011266,2]
[355483150,1741199452823,-282.96273228,0.00011266,2]
[355483237,1741199453653,-564.33,0.00010991,2]
[355483239,1741199453663,-500.0,0.00010991,2]
[355483241,1741199453673,-181.66,0.00011265,2]
[355483243,1741199453682,-217.03726772,0.00011266,2]
[355483245,1741199453692,-500.0,0.00011266,2]
[355483247,1741199453701,-1035.98,0.00011266,2]
[355483249,1741199453710,-500.0,0.00011266,2]
[355483251,1741199453719,-1010.33,0.00011266,2]
[355483253,1741199453729,-1282.75,0.00011266,2]
[355483255,1741199453739,-500.0,0.00011266,2]
[355483257,1741199453748,-500.0,0.00011266,2]
[355483259,1741199453758,-500.0,0.00011266,2]
[355483261,1741199453767,-940.5,0.00011266,2]
[355483263,1741199453777,-514.71125803,0.00011266,2]
[355483265,1741199453787,-438.15914007,0.00011266,2]
[355483267,1741199453796,-512.72,0.00011266,2]
[355483269,1741199453805,-500.0,0.00011266,2]
[355483271,1741199453815,-594.97,0.00011266,2]
[355483273,1741199453824,-500.0,0.00011266,2]
[355483275,1741199453834,-597.53,0.00011266,2]
[355483277,1741199453843,-500.0,0.00011266,2]
[355483278,1741199453852,-494.32881699,0.00011266,2]
[355483281,1741199453865,-239.46118301,0.00011266,2]
[355483283,1741199453874,-1402.29,0.00011266,2]
[355483285,1741199453884,-1073.85,0.00011266,2]
[355483287,1741199453893,-546.62,0.00011266,2]
[355483288,1741199453903,-1830.55657882,0.00011266,2]
[355483291,1741199453915,-111.18342118,0.00011266,2]
[355483293,1741199453924,-511.28,0.00011266,2]
[355483295,1741199453934,-500.0,0.00011266,2]
[355483297,1741199453943,-500.0,0.00011266,2]
[355483299,1741199453952,-714.5,0.00011266,2]
[355483300,1741199453961,-500.0,0.00011266,2]
[355483302,1741199453970,-500.0,0.00011266,2]
[355483304,1741199453979,-1981.72,0.00011266,2]
[355483306,1741199453991,-500.0,0.00011266,2]
[355483308,1741199454000,-899.51,0.00011266,2]
[355483310,1741199454010,-500.0,0.00011266,2]
[355483312,1741199454019,-500.0,0.00011266,2]
[355483314,1741199454029,-500.0,0.00011266,2]
[355483316,1741199454039,-575.31,0.00011266,2]
[355483318,1741199454048,-603.82,0.00011266,2]
[355483320,1741199454058,-1713.4,0.00011266,2]
[355483322,1741199454069,-500.0,0.00011266,2]
[355483324,1741199454078,-513.1,0.00011266,2]
[355483326,1741199454087,-500.0,0.00011266,2]
[355483328,1741199454096,-1480.85,0.00011266,2]
[355483330,1741199454105,-500.0,0.00011266,2]
[355483332,1741199454114,-500.0,0.00011266,2]
[355483334,1741199454123,-500.0,0.00011266,2]
[355483336,1741199454135,-500.0,0.00011266,2]
[355483340,1741199454144,-500.0,0.00011266,2]
[355483341,1741199454216,-884.31,0.00011266,2]
[355483342,1741199454226,-525.49,0.00011266,2]
[355483343,1741199454235,-578.43,0.00011266,2]
[355483344,1741199454244,-500.0,0.00011266,2]
[355483345,1741199454254,-500.0,0.00011266,2]
[355483346,1741199454264,-500.0,0.00011266,2]
[355483347,1741199454273,-1139.17,0.00011266,2]
[355483348,1741199454282,-1185.13,0.00011266,2]
[355483349,1741199454292,-500.0,0.00011266,2]
[355483350,1741199454301,-500.0,0.00011266,2]
[355483351,1741199454311,-500.0,0.00011266,2]
[355483352,1741199454326,-1130.25,0.00011266,2]
[355483353,1741199454335,-500.0,0.00011266,2]
[355483354,1741199454345,-1205.65,0.00011266,2]
[355483355,1741199454356,-1430.12,0.00011266,2]
[355483356,1741199454365,-500.0,0.00011266,2]
[355483357,1741199454374,-1733.79,0.00011266,2]
[355483358,1741199454384,-4178.8,0.00011266,2]
[355483359,1741199454393,-3138.2,0.00011266,2]
[355483360,1741199454403,-593.62,0.00011266,2]
[355483361,1741199454412,-17741.52,0.00011266,2]
[355483362,1741199454421,-500.0,0.00011266,2]
[355483364,1741199454431,-500.0,0.00011266,2]
[355483366,1741199454440,-599.98,0.00011266,2]
[355483368,1741199454449,-2457.55,0.00011266,2]
[355483370,1741199454458,-500.0,0.00011266,2]
[355483371,1741199454468,-19960.34,0.00011266,2]
[355483372,1741199454477,-684.39,0.00011266,2]
[355483373,1741199454487,-500.0,0.00011266,2]
[355483374,1741199454496,-2157.05,0.00011266,2]
[355483375,1741199454505,-670.63,0.00011266,2]
[355483377,1741199454514,-500.0,0.00011266,2]
[355483379,1741199454523,-1655.1,0.00011266,2]
[355483381,1741199454533,-500.0,0.00011266,2]
[355483383,1741199454542,-3498.48,0.00011266,2]
[355483385,1741199454551,-500.0,0.00011266,2]
[355483387,1741199454560,-1368.52,0.00011266,2]
[355483389,1741199454569,-668.26,0.00011266,2]
[355483391,1741199454578,-4077.01,0.00011266,2]
[355483394,1741199454594,-500.0,0.00011266,2]
[355483396,1741199454607,-2774.9,0.00011266,2]
[355483398,1741199454616,-500.0,0.00011266,2]
[355483400,1741199454626,-512.7,0.00011266,2]
[355483402,1741199454636,-2453.92,0.00011266,2]
[355483404,1741199454646,-151.0,0.00011267,2]
[355483406,1741199454655,-1000.0,0.00011268,2]
[355483408,1741199454666,-1000.0,0.00011268,2]
[355483410,1741199454675,-1000.0,0.00011268,2]
[355483412,1741199454684,-1000.0,0.00011268,2]
[355483414,1741199454693,-1000.0,0.00011268,2]
[355483416,1741199454702,-1000.0,0.00011268,2]
[355483417,1741199454711,-1000.0,0.00011268,2]
[355483419,1741199454720,-1000.0,0.00011268,2]
[355483421,1741199454730,-1000.0,0.00011268,2]
[355483423,1741199454739,-1000.0,0.00011268,2]
[355483425,1741199454748,-1000.0,0.00011268,2]
[355483427,1741199454758,-1000.0,0.00011268,2]
[355483429,1741199454767,-1000.0,0.00011268,2]
[355483431,1741199454776,-1000.0,0.00011268,2]
[355483433,1741199454785,-1000.0,0.00011268,2]
[355483436,1741199454795,-1000.0,0.00011268,2]
[355483437,1741199454804,-1000.0,0.00011268,2]
[355483439,1741199454813,-1000.0,0.00011268,2]
[355483442,1741199454822,-1000.0,0.00011268,2]
[355483443,1741199454831,-1000.0,0.00011268,2]
[355483446,1741199454840,-1000.0,0.00011268,2]
[355483447,1741199454850,-685.14768509,0.00011268,2]
[355483450,1741199454859,-11441.3698477,0.00011268,2]
[355483451,1741199454868,-4593.4190361,0.00011268,2]
[355483453,1741199454877,-150.0,0.00011276,2]
[355483455,1741199454887,-150.0,0.00011276,2]
[355483457,1741199454896,-150.0,0.00011276,2]
[355483459,1741199454906,-550.0,0.00011287,2]
[355483461,1741199454915,-550.0,0.00011287,2]
[355483463,1741199454924,-178.068,0.000113,2]
[355483465,1741199454933,-2672.874,0.000113,2]
[355483467,1741199454943,-150.07359085,0.000113,2]
[355483469,1741199454952,-150.0735908,0.000113,2]
[355483471,1741199454961,-150.0735908,0.000113,2]
[355483473,1741199454971,-150.0735908,0.000113,2]
[355483475,1741199454980,-893.70053179,0.00011314,2]
[355483477,1741199454990,-2482.23,0.00011318,2]
[355483479,1741199455003,-678.5798689,0.00011334,2]
[355483481,1741199455013,-55909.55563797,0.00011335,2]
[355483483,1741199455022,-338.82493417,0.0001134,2]
[355483485,1741199455032,-2552.7823568,0.00011348,2]
[355483487,1741199455042,-2568.72421356,0.00011348,2]
[355483489,1741199455051,-150.0735908,0.00011353,2]
[355483491,1741199455060,-571.0,0.0001136,2]
[355483493,1741199455069,-150.0,0.0001136,2]
[355483495,1741199455080,-1459.0,0.0001136,2]
[355483497,1741199455089,-668.923,0.0001136,2]
[355483499,1741199455098,-786.0,0.0001136,2]
[355483501,1741199455107,-541.0,0.0001136,2]
[355483503,1741199455117,-907.0,0.0001136,2]
[355483505,1741199455126,-1427.0,0.0001136,2]
[355483507,1741199455136,-1270.0,0.0001136,2]
[355483509,1741199455145,-4041.0,0.0001136,2]
[355483511,1741199455154,-150.0,0.0001136,2]
[355483513,1741199455164,-2032.0,0.0001136,2]
[355483515,1741199455173,-151.0,0.0001136,2]
[355483517,1741199455182,-1012.0,0.0001136,2]
[355483519,1741199455192,-150.0,0.00011375,2]
[355483521,1741199455202,-269.31,0.00011375,2]
[355483523,1741199455211,-893.70053179,0.00011383,2]
[355483525,1741199455221,-320.92761841,0.00011451,2]
[355483527,1741199455231,-893.70053179,0.00011452,2]
[355483529,1741199455241,-375.53,0.00011466,2]
[355483531,1741199455251,-150.0735908,0.00011469,2]
[355483533,1741199455260,-10735.06456328,0.00011484,2]
[355483535,1741199455269,-258.66,0.00011484,2]
[355483537,1741199455278,-98732.48267567,0.00011485,2]
[355485475,1741199500217,1187.42,8.219e-05,2]
[355485476,1741199566335,168.48,0.00010093,2]
[355485477,1741199566655,168.48,0.00010135,2]
[355485478,1741199566862,168.48,0.00010178,2]
[355485479,1741199567416,168.48,0.0001022,2]
[355485480,1741199763778,439.729218,9.896e-05,2]
[355485481,1741199763802,277.410782,9.896e-05,2]
[355485482,1741199889090,150.0,0.00010093,7]
[355485483,1741199904650,250.0,9.886e-05,2]
[355485484,1741199923600,2000.0,9.886e-05,2]
[355485485,1741199981305,1000.0,0.00010093,2]
[355485486,1741200003932,-168.48,0.00010263,2]
[355485487,1741200003960,-168.48,0.00010305,2]
[355485488,1741200003987,-168.48,0.00010348,2]
[355485489,1741200004022,-168.48,0.0001039,2]
[355485490,1741200004051,-168.48,0.00010433,2]
[355485491,1741200004081,-168.48,0.00010475,2]
[355485492,1741200004371,-1187.42,0.00010481,2]
[355485493,1741200004400,-168.48,0.00010518,2]
[355485494,1741200004433,-168.48,0.0001056,2]
[355485495,1741200004482,-168.48,0.00010603,2]
[355485496,1741200004536,-150.0,0.00010618,2]
[355485497,1741200004570,-168.48,0.00010645,2]
[355485498,1741200004621,-168.48,0.00010688,2]
[355485499,1741200004686,-168.48,0.0001073,2]
[355485500,1741200004720,-1000.0,0.00010756,2]
[355485501,1741200004756,-250.0,0.0001076,2]
[355485502,1741200004811,-168.48,0.00010773,2]
[355485503,1741200004860,-150.0,0.00010802,2]
[355485504,1741200004891,-168.48,0.00010815,2]
[355485505,1741200004915,-500.0,0.00010852,2]
[355485506,1741200004942,-168.48,0.00010858,2]
[355485507,1741200004967,-322.59146777,0.00010892,2]
[355485508,1741200004990,-5000.0,0.00010892,2]
[355485509,1741200005020,-168.48,0.000109,2]
[355485510,1741200005046,-150.0,0.00010989,2]
[355485511,1741200005072,-500.0,0.0001099,2]
[355485512,1741200005099,-500.0,0.0001099,2]
[355485513,1741200005125,-500.0,0.0001099,2]
[355485514,1741200005150,-1000.0,0.0001099,2]
[355485515,1741200005179,-500.0,0.0001099,2]
[355485516,1741200005205,-569.34,0.0001099,2]
[355485517,1741200005234,-500.0,0.0001099,2]
[355485518,1741200005260,-714.28,0.0001099,2]
[355485519,1741200005285,-500.0,0.0001099,2]
[355485520,1741200005310,-500.0,0.0001099,2]
[355485521,1741200005337,-500.0,0.0001099,2]
[355485522,1741200005365,-500.0,0.0001099,2]
[355485523,1741200005392,-239.01764879,0.0001099,2]
[355485524,1741200005419,-500.0,0.0001099,2]
[355485525,1741200005446,-500.0,0.0001099,2]
[355485526,1741200005475,-500.0,0.0001099,2]
[355485527,1741200005501,-570.36,0.0001099,2]
[355485528,1741200005526,-500.0,0.0001099,2]
[355485529,1741200005552,-500.0,0.0001099,2]
[355485530,1741200005578,-500.0,0.0001099,2]
[355485531,1741200005607,-500.0,0.0001099,2]
[355485532,1741200005637,-500.0,0.0001099,2]
[355485533,1741200005667,-500.0,0.0001099,2]
[355485534,1741200005694,-500.0,0.0001099,2]
[355485535,1741200005722,-500.0,0.0001099,2]
[355485536,1741200005749,-500.0,0.0001099,2]
[355485537,1741200005776,-500.0,0.0001099,2]
[355485538,1741200005804,-500.0,0.0001099,2]
[355485539,1741200005833,-500.0,0.0001099,2]
[355485540,1741200005862,-684.49,0.0001099,2]
[355485541,1741200005891,-500.0,0.0001099,2]
[355485542,1741200005917,-500.0,0.0001099,2]
[355485543,1741200005942,-500.0,0.0001099,2]
[355485544,1741200005966,-500.0,0.0001099,2]
[355485545,1741200005988,-500.0,0.0001099,2]
[355485546,1741200006013,-607.87,0.0001099,2]
[355485547,1741200006037,-500.0,0.0001099,2]
[355485548,1741200006060,-500.0,0.0001099,2]
[355485549,1741200006084,-500.0,0.0001099,2]
[355485550,1741200006110,-500.0,0.0001099,2]
[355485551,1741200006133,-500.0,0.0001099,2]
[355485552,1741200006156,-500.0,0.0001099,2]
[355485553,1741200006181,-500.0,0.0001099,2]
[355485554,1741200006204,-500.0,0.0001099,2]
[355485555,1741200006228,-500.0,0.0001099,2]
[355485556,1741200006255,-500.0,0.0001099,2]
[355485557,1741200006279,-566.96,0.0001099,2]
[355485558,1741200006303,-500.0,0.0001099,2]
[355485559,1741200006327,-500.0,0.0001099,2]
[355485560,1741200006352,-500.0,0.0001099,2]
[355485561,1741200006378,-500.0,0.0001099,2]
[355485562,1741200006413,-500.0,0.0001099,2]
[355485563,1741200006438,-500.0,0.0001099,2]
[355485564,1741200006462,-500.0,0.0001099,2]
[355485565,1741200006486,-500.0,0.0001099,2]
[355485566,1741200006512,-501.66955083,0.0001099,2]
[355485567,1741200006536,-500.0,0.0001099,2]
[355485568,1741200006562,-500.0,0.0001099,2]
[355485569,1741200006589,-500.0,0.0001099,2]
[355485570,1741200006615,-500.0,0.0001099,2]
[355485571,1741200006641,-500.0,0.0001099,2]
[355485572,1741200006666,-500.0,0.0001099,2]
[355485573,1741200006691,-314.40612067,0.0001099,2]
[355485574,1741200006716,-505.36278889,0.0001099,2]
[355485575,1741200006741,-514.72636676,0.0001099,2]
[355485576,1741200006767,-500.0,0.0001099,2]
[355485577,1741200006792,-500.0,0.0001099,2]
[355485578,1741200006817,-500.0,0.0001099,2]
[355485579,1741200006844,-501.98272247,0.0001099,2]
[355485580,1741200006875,-500.0,0.0001099,2]
[355485581,1741200006905,-500.0,0.0001099,2]
[355485582,1741200006945,-500.0,0.0001099,2]
[355485583,1741200006974,-500.0,0.0001099,2]
[355485584,1741200007006,-500.0,0.0001099,2]
[355485585,1741200007032,-500.0,0.0001099,2]
[355485586,1741200007059,-508.70037141,0.0001099,2]
[355485587,1741200007084,-333.61025899,0.0001099,2]
[355485588,1741200007112,-500.0,0.0001099,2]
[355485589,1741200007137,-500.0,0.0001099,2]
[355485590,1741200007165,-500.0,0.0001099,2]
[355485591,1741200007189,-500.0,0.0001099,2]
[355485592,1741200007216,-501.00360562,0.0001099,2]
[355485593,1741200007241,-500.0,0.0001099,2]
[355485594,1741200007275,-500.0,0.0001099,2]
[355485595,1741200007314,-500.0,0.0001099,2]
[355485596,1741200007342,-500.0,0.0001099,2]
[355485597,1741200007382,-500.0,0.0001099,2]
[355485598,1741200007409,-500.0,0.0001099,2]
[355485599,1741200007435,-500.0,0.0001099,2]
[355485600,1741200007463,-500.0,0.0001099,2]
[355485601,1741200007488,-500.0,0.0001099,2]
[355485602,1741200007521,-500.0,0.0001099,2]
[355485603,1741200007554,-500.0,0.0001099,2]
[355485604,1741200007580,-500.66606976,0.0001099,2]
[355485605,1741200007814,-500.0,0.0001099,2]
[355485606,1741200007843,-500.0,0.0001099,2]
[355485607,1741200007870,-504.66347643,0.0001099,2]
[355485608,1741200007896,-500.0,0.0001099,2]
[355485609,1741200007921,-915.78,0.0001099,2]
[355485610,1741200008132,-505.74067281,0.0001099,2]
[355485611,1741200008213,-500.0,0.0001099,2]
[355485612,1741200008240,-500.0,0.0001099,2]
[355485613,1741200008266,-500.0,0.0001099,2]
[355485614,1741200008291,-504.37693375,0.0001099,2]
[355485615,1741200008317,-500.0,0.0001099,2]
[355485616,1741200008344,-500.0,0.0001099,2]
[355485617,1741200008371,-500.0,0.0001099,2]
[355485618,1741200008396,-500.0,0.0001099,2]
[355485619,1741200008421,-500.0,0.0001099,2]
[355485620,1741200008447,-500.0,0.0001099,2]
[355485621,1741200008475,-500.0,0.0001099,2]
[355485622,1741200008501,-500.0,0.0001099,2]
[355485623,1741200008527,-500.0,0.0001099,2]
[355485624,1741200008551,-500.0,0.0001099,2]
[355485625,1741200008575,-500.0,0.0001099,2]
[355485626,1741200008601,-500.0,0.0001099,2]
[355485627,1741200008625,-500.0,0.0001099,2]
[355485628,1741200008653,-500.0,0.0001099,2]
[355485629,1741200008677,-500.0,0.0001099,2]
[355485630,1741200008702,-500.0,0.0001099,2]
[355485631,1741200008728,-500.0,0.0001099,2]
[355485632,1741200008755,-500.0,0.0001099,2]
[355485633,1741200008781,-500.0,0.0001099,2]
[355485634,1741200008808,-500.0,0.0001099,2]
[355485635,1741200008839,-500.0,0.0001099,2]
[355485636,1741200008865,-500.0,0.0001099,2]
[355485637,1741200008889,-500.0,0.0001099,2]
[355485638,1741200008914,-685.76,0.0001099,2]
[355485639,1741200008938,-500.0,0.0001099,2]
[355485640,1741200008962,-500.0,0.0001099,2]
[355485641,1741200008986,-595.61,0.0001099,2]
[355485642,1741200009011,-500.0,0.0001099,2]
[355485643,1741200009035,-500.0,0.0001099,2]
[355485644,1741200009060,-500.0,0.0001099,2]
[355485645,1741200009084,-500.0,0.0001099,2]
[355485646,1741200009112,-500.0,0.0001099,2]
[355485647,1741200009138,-868.71,0.0001099,2]
[355485648,1741200009163,-500.0,0.0001099,2]
[355485649,1741200009189,-500.0,0.0001099,2]
[355485650,1741200009215,-700.92,0.0001099,2]
[355485651,1741200009239,-500.0,0.0001099,2]
[355485652,1741200009265,-500.0,0.0001099,2]
[355485653,1741200009291,-500.0,0.0001099,2]
[355485654,1741200009317,-500.0,0.0001099,2]
[355485655,1741200009345,-693.22021,0.0001099,2]
[355485656,1741200009371,-500.0,0.0001099,2]
[355485657,1741200009410,-854.09,0.0001099,2]
[355485658,1741200009436,-500.0,0.0001099,2]
[355485659,1741200009463,-745.16,0.0001099,2]
[355485660,1741200009489,-500.0,0.0001099,2]
[355485661,1741200009517,-936.239597,0.0001099,2]
[355485662,1741200009543,-500.0,0.0001099,2]
[355485663,1741200009569,-795.9,0.0001099,2]
[355485664,1741200009595,-500.0,0.0001099,2]
[355485665,1741200009623,-162.901739,0.0001099,2]
[355485666,1741200009650,-500.0,0.0001099,2]
[355485667,1741200009677,-152.050569,0.0001099,2]
[355485668,1741200009702,-500.0,0.0001099,2]
[355485669,1741200009727,-500.0,0.0001099,2]
[355485670,1741200009752,-500.0,0.0001099,2]
[355485671,1741200009778,-500.0,0.0001099,2]
[355485672,1741200009803,-500.0,0.0001099,2]
[355485673,1741200009828,-500.0,0.0001099,2]
[355485674,1741200009853,-725.57,0.0001099,2]
[355485675,1741200009878,-500.0,0.0001099,2]
[355485676,1741200009903,-3552.11,0.0001099,2]
[355485677,1741200009928,-568.6,0.0001099,2]
[355485678,1741200009953,-500.0,0.0001099,2]
[355485679,1741200009979,-780.47,0.0001099,2]
[355485680,1741200010010,-1091.21,0.0001099,2]
[355485681,1741200010037,-1318.13,0.0001099,2]
[355485682,1741200010063,-595.71,0.0001099,2]
[355485683,1741200010089,-734.79,0.0001099,2]
[355485684,1741200010116,-1042.35,0.0001099,2]
[355485685,1741200010142,-500.0,0.0001099,2]
[355485686,1741200010169,-500.0,0.0001099,2]
[355485687,1741200010196,-976.47,0.0001099,2]
[355485688,1741200010224,-500.0,0.0001099,2]
[355485689,1741200010257,-654.39,0.0001099,2]
[355485690,1741200010284,-1614.87,0.0001099,2]
[355485691,1741200010309,-500.0,0.0001099,2]
[355485692,1741200010336,-500.0,0.0001099,2]
[355485693,1741200010365,-1022.01,0.0001099,2]
[355485694,1741200010391,-818.2,0.0001099,2]
[355485695,1741200010418,-1057.03,0.0001099,2]
[355485696,1741200010444,-575.46,0.0001099,2]
[355485697,1741200010470,-1059.83,0.0001099,2]
[355485698,1741200010497,-500.0,0.0001099,2]
[355485699,1741200010523,-500.0,0.0001099,2]
[355485700,1741200010549,-600.44,0.0001099,2]
[355485701,1741200010577,-2091.97,0.0001099,2]